Cogmind - Beta 10.1 @@@ ROGUE MODE // 2020.10.14 @ 16:05:00 // AFD2020/Player2 Player: Minty Result: Destroyed by D-53 Grenadier with Mini Grenade Launcher Performance ------------- Evolutions (0) 0 Regions Visited (2) 400 Robots Destroyed (1) 5 Value Destroyed (104) 104 Prototype IDs (0) 0 Alien Tech Used (0) 0 Bonus (35) 35 TOTAL SCORE: 544 Bonus ------- Follower Combat Kills 35 Cogmind --------- Core Integrity 0/250 Matter 300/300 Energy 100/100 System Corruption 0% Temperature Cool (0) Movement Core (100) Ox1 Location -10/Mines Parts ------- > --- POWER (1) -------- (None) > --- PROPULSION (2) --- (None) > --- UTILITY (2) ------ Small Storage Unit > --- WEAPON (2) ------- (None) > --- INVENTORY (6) ---- Targeting Computer Datajack Peak State ------------ > --- POWER ------------ Light Ion Engine > --- PROPULSION ------- Wheel Wheel > --- UTILITY ---------- Small Storage Unit Tractor Beam > --- WEAPON ----------- Medium Laser Particle Gun > --- INVENTORY -------- (None) [Rating: 8] Favorites ----------- Power Light Ion Engine Engine Light Ion Engine Propulsion Wheel Leg Aluminum Leg Wheel Wheel Utility Small Storage Unit Device Tractor Beam Storage Small Storage Unit Weapon Medium Laser Energy Gun Medium Laser Build | -11 -10 -10 ------- Run | Scr Mat Min Slots Evolved . | . . . Power . | . . . Propulsion . | . . . Utility . | . . . Weapon . | . . . Parts Attached 10 | 8 . 2 Power 1 | 1 . . Engine 1 | 1 . . Core . | . . . Reactor . | . . . Propulsion 4 | 4 . . Treads . | . . . Leg 2 | 2 . . Wheel 2 | 2 . . Hover . | . . . Flight . | . . . Utility 2 | 1 . 1 Device 1 | . . 1 Storage 1 | 1 . . Processor . | . . . Hackware . | . . . Protection . | . . . Artifact . | . . . Weapon 3 | 2 . 1 Energy Gun 3 | 2 . 1 Energy Cannon . | . . . Ballistic Gun . | . . . Ballistic Cannon . | . . . Launcher . | . . . Special Weapon . | . . . Impact Weapon . | . . . Slashing Weapon . | . . . Piercing Weapon . | . . . Special Melee Weapon . | . . . Unidentified Prototypes . | . . . Parts Lost 7 | . 1 6 Power 1 | . . 1 Propulsion 2 | . . 2 Utility 1 | . . 1 Weapon 3 | . 1 2 Highest Loss Streak 6 | . 1 6 Average Slot Usage (%) 84 | . 82 85 Engine 12 | . 14 11 Wheel 26 | . 28 25 Device 5 | . . 8 Storage 14 | . 14 14 Energy Gun 24 | . 25 24 Naked Turns . | . . . Heaviest Build 13 | 10 10 13 Greatest Support 20 | 20 20 20 Greatest Overweight (x) 1 | . . 1 Average Overweight (x) . | . . . Largest Inventory Capacity 6 | 6 6 6 Average Capacity 5 | 5 6 6 Most Carried 2 | . . 2 Average Carried . | . . . Final Capacity 6 | 6 6 6 Final Carried 2 | . . 2 Class Distribution -------------------- 100% | Mutant Dominant Class ---------------- Mutant | -10/Materials Mutant | -10/Mines Resources | -11 -10 -10 ----------- Run | Scr Mat Min Matter Collected 295 | 208 . 87 Remotely 29 | . . 29 Salvage Created 52 | . . 52 Parts 1 | . . 1 Haulers Intercepted . | . . . Recyclers Shooed . | . . . Parts Field Recycled . | . . . Retrieved Matter . | . . . Parts Self-Destructed . | . . . Prevented . | . . . Kills | -11 -10 -10 ------- Run | Scr Mat Min Combat Hostiles Destroyed 1 | . . 1 Guns 1 | . . 1 Classes Destroyed 1 | . . 1 Grunt 1 | . . 1 Best Kill Streak 1 | . . 1 Combat Bots Only 1 | . . 1 Max Kills in Single Turn 1 | . . 1 Gunslinging . | . . . Exploded . | . . . Melee . | . . . Uniques/NPCs Destroyed . | . . . Combat | -11 -10 -10 -------- Run | Scr Mat Min Damage Taken 588 | . 154 434 Core 238 | . 48 190 Absorbed by Shields . | . . . Core Remaining (%) 100 | 100 . . Volleys Fired 16 | . 5 11 Largest 2 | . 2 2 Hottest 115 | . 90 115 Shots Fired 26 | . 8 18 Gun 26 | . 8 18 Cannon . | . . . Launcher . | . . . Special . | . . . Kinetic . | . . . Thermal 26 | . 8 18 Explosive . | . . . Electromagnetic . | . . . Robot Hit Streak 8 | . 1 8 Robot Miss Streak 4 | . 4 1 Penetration Max . | . . . Secondary Targets . | . . . Shots Hit Robots 16 | . 2 14 Core Hits 8 | . 1 7 Critical Hits . | . . . Critical Kills . | . . . Critical Parts Destroyed . | . . . Melee Attacks . | . . . Impact . | . . . Slashing . | . . . Piercing . | . . . Sneak Attacks . | . . . Combat Hostiles . | . . . Follow-up Attacks . | . . . Damage Inflicted 241 | . 36 205 Guns 241 | . 36 205 Cannons . | . . . Explosions . | . . . Melee . | . . . Ramming . | . . . Kinetic . | . . . Thermal 241 | . 36 205 Explosive . | . . . Electromagnetic . | . . . Impact . | . . . Slashing . | . . . Piercing . | . . . Highest Corruption . | . . . Average Corruption . | . . . Corruption Purged . | . . . Overload Shots . | . . . Overflow Damage . | . . . Projectiles . | . . . Explosions . | . . . Melee . | . . . Knockbacks . | . . . Impact . | . . . Kinetic . | . . . Secondary . | . . . Self-Inflicted Damage . | . . . Shots . | . . . Rammed . | . . . Targets Rammed . | . . . Kicked . | . . . Crushed . | . . . Highest Temperature 239 | . 129 239 Average Temperature 82 | . 54 91 Received Heat Transfer 54 | . 39 15 Siege Activations . | . . . Robots Corrupted . | . . . Combat Hostiles . | . . . Parts Fried . | . . . Impact Corruptions . | . . . Robots Melted . | . . . Combat Hostiles . | . . . Parts Melted . | . . . Heat Transferred 654 | . 99 555 Parts Sabotaged . | . . . Parts Stolen . | . . . Parts Stripped . | . . . Power Chain Reactions . | . . . Missiles Intercepted . | . . . Alert | -11 -10 -10 ------- Run | Scr Mat Min Peak Influence 119 | . 65 119 Initial 21 | . . 21 Average 61 | . 38 107 Maximum Alert Level . | . . . Low Security (%) 100 | 100 100 100 Level 1 . | . . . Level 2 . | . . . Level 3 . | . . . Level 4 . | . . . Level 5 . | . . . High Security . | . . . Max Security . | . . . Squads Dispatched 1 | . 1 . Investigation 1 | . 1 . Extermination . | . . . Reinforcement . | . . . Assault . | . . . Garrison . | . . . Intercept . | . . . Construction Impeded . | . . . Haulers Reinforced . | . . . Stealth | -11 -10 -10 --------- Run | Scr Mat Min Distress Signals 1 | . 1 . Communications Jammed . | . . . Distress Signals . | . . . Times Spotted 12 | . 8 4 Peak Tracking Total 8 | . 8 2 Tactical Retreats . | . . . Traps | -11 -10 -10 ------- Run | Scr Mat Min Traps Triggered . | . . . Indirectly . | . . . Trap Hack Attempts . | . . . Triggered . | . . . Disarmed . | . . . Reprogrammed . | . . . Reused . | . . . Traps Extracted . | . . . Installed . | . . . Triggered . | . . . Machines | -11 -10 -10 ---------- Run | Scr Mat Min Machines Disabled 1 | . . 1 Max in Single Turn . | . . . Machines Sabotaged 1 | . 1 . Garrisons Compromised . | . . . Overloaded Fab Kills . | . . . Fab Network Shutdowns . | . . . Hacking | -11 -10 -10 --------- Run | Scr Mat Min Machines Accessed 1 | . 1 . Terminals 1 | . 1 . Fabricators . | . . . Repair Stations . | . . . Recycling Units . | . . . Scanalyzers . | . . . Garrison Access . | . . . Total Hacks 4 | . 4 . Successful 1 | . 1 . Failed 3 | . 3 . Catastrophic . | . . . Database Lockouts . | . . . Manual 4 | . 4 . Terminals 4 | . 4 . Fabricators . | . . . Repair Stations . | . . . Recycling Units . | . . . Scanalyzers . | . . . Garrison Access . | . . . Terminal Hacks . | . . . Fabricator Hacks . | . . . Repair Station Hacks . | . . . Recycling Unit Hacks . | . . . Scanalyzer . | . . . Garrison Access Hacks . | . . . Unauthorized Hacks 1 | . 1 . Terminals 1 | . 1 . Sabotage 1 | . 1 . Fabricators . | . . . Repair Stations . | . . . Recycling Units . | . . . Scanalyzers . | . . . Garrison Access . | . . . Data Cores Recovered . | . . . Used . | . . . Hacking Detections 1 | . 1 . Full Trace Events . | . . . Feedback Events . | . . . Feedback Blocked . | . . . Robot Schematics Acquired . | . . . Robots Built . | . . . Matter . | . . . Time . | . . . Total Robot Build Rating . | . . . Part Schematics Acquired . | . . . Parts Built . | . . . Matter . | . . . Time . | . . . Total Part Build Rating . | . . . Parts Repaired . | . . . Time . | . . . Parts Recycled . | . . . Recycled Matter . | . . . Retrieved Matter . | . . . Retrieved Components . | . . . Parts Scanalyzed . | . . . Part Schematics Acquired . | . . . Parts Damaged . | . . . Bothacking | -11 -10 -10 ------------ Run | Scr Mat Min Used RIF Installer . | . . . Robots Hacked . | . . . Non-combat . | . . . Combat . | . . . Robot Hacks Applied . | . . . Relay Couplers Released . | . . . Robots Rewired . | . . . Allies Hacked . | . . . Hacks Repelled . | . . . Allies | -11 -10 -10 -------- Run | Scr Mat Min Total Allies 1 | . 1 . Largest Group 1 | . 1 1 Highest-Rated Group 54 | . 52 54 Highest-Rated Ally 54 | . 52 54 Total Orders . | . . . Ally Attacks 2 | . 1 1 Total Damage 120 | . 25 95 Kills 1 | . . 1 Allies Corrupted . | . . . Allies Melted . | . . . Intel | -11 -10 -10 ------- Run | Scr Mat Min Robot Analysis Total . | . . . Derelict Logs Recovered . | . . . Drone Launches . | . . . Drone Recoveries . | . . . Exploration | -11 -10 -10 ------------- Run | Scr Mat Min Turns Passed 234 | 62 58 114 Spaces Moved 216 | 62 55 99 Core 20 | 17 . 3 Treads . | . . . Legs 11 | 11 . . Wheels 185 | 34 55 96 Hover . | . . . Flight . | . . . Fastest Speed 50 | 50 80 80 Average Speed 79 | 78 80 80 Slowest Speed 120 | 120 80 100 Overloaded Moves . | . . . Propulsion Burnouts . | . . . Robots Hopped . | . . . Cave-ins Triggered . | . . . Exploration Rate (%) 17 | 4 25 22 Regions Visited 2 Branch Regions 1 Pre-discovered Areas . | . . . Known Exits Taken . | . . . Unknown Exits Taken 2 | 1 1 . Scrap Searched 1 | . . 1 Spaces Dug . | . . . Terrain Destroyed . | . . . Melee . | . . . Projectile . | . . . AOE . | . . . Terrain Rammed . | . . . Walls Destroyed . | . . . Machines Disabled . | . . . Actions | -11 -10 -10 --------- Run | Scr Mat Min Total 245 | 71 60 114 Wait 1 | . 1 . Move 214 | 61 54 99 Hop . | . . . Pick Up 2 | . . 2 Fast Attach 10 | 8 . 2 Attach . | . . . Detach . | . . . Swap . | . . . Drop 2 | 2 . . Fire 16 | . 5 11 Melee . | . . . Ram . | . . . Kick . | . . . Crush . | . . . Escape Stasis . | . . . Rewire . | . . . Trap . | . . . Miscellaneous . | . . . Route ------- -11/Scrapyard -10/Materials (discovered 2 exits: [*Min x2]) -10/Mines History --------- Turn | Location | Event 5 | -11/Scrapyard | Discovered new exit (range 16) 63 | -11/Scrapyard | Entered Materials 63 | -10/Materials | Discovered new exit (range 7) 101 | -10/Materials | Discovered new exit (range 6) 121 | -10/Materials | Entered Mines 121 | -10/Mines | Accompanied by 1 ally 140 | -10/Mines | Met a Derelict bent on vengeance 197 | -10/Mines | Assembled infested the area 223 | -10/Mines | Core integrity fell below 50% 233 | -10/Mines | Core integrity fell below 20% 235 | -10/Mines | Destroyed by D-53 Grenadier with Mini Grenade Launcher Last Messages --------------- 00186_ Acquired Datajack. 00197_ ALERT: Infestation in the mines, dispatching Demolisher response squad. Player 2: "Okay we need to either get out of here fast, or hide and let 0b10 handle the infestation, then avoid the dispatch." 00207_ K-01 Serf collects debris. 00216_ C-30 ARC bursts open, deploying its payload. 00216_ D-53 Grenadier unfolds itself. 00217_ Acquired 16 matter. 00218_ Wheel destroyed. 00218_ Med. Laser destroyed. 00218_ Lgt. Ion Engine destroyed. 00219_ The unstable cave ceiling collapses. 00223_ Particle Gun destroyed. 00229_ K-01 Serf cleans the Pressure Siphon. 00230_ Tractor Beam destroyed. 00230_ Pressure Siphon disabled. 00230_ R-06 Scavenger destroyed. 00232_ Wheel destroyed. 00233_ K-01 Serf collects debris. Map ----- +----------------------------------------------------+ | ??????????????????????????????????# ## | | ??????????????????????????????????## #? | | ???????????????????????????????????# #####? | | ????????????????????# ?????????????# #????? | | ??????????????????## ?????????????# #????? | | ??????????????????# ?????????????# #????? | | ?????????????????## ?????????????# #????? | | ????????????????## ?????????????# #????? | | ????????????????# ????????????## ##???? | | ????????????????# ##???######## #???? | | ????????????????# ##### ##! #???? | | ?????????????????# ##???? | | ??????????????????# | ##????? | | ???????????????????# ### ##?????? | | ????????????????????# #??# ! ###??????? | | ????????????????????# #??## ###???????? | | ????????????????????# ##### #######?? | | ???????????????# #### ##? | | ???????????????# ###### #? | | ???????????????###### #????## ?? | | ????????????????????#/ ###???## ??? | | ????????????????????# #????# #??? | | ????????????????????#### ##?### #??? | | ??????????????????????## ## ## #??? | | ??????????????????????# ##??? | | ??????????????????????## @ d ####???? | | ??????????????????????# d ##?????? | | ?????????????????????# #?????? | | ?????????????????????## ! #?????? | | ??????????????????????# @ ##?????? | | ??????????????????????# ##?????? | | ??????????????????????# #???? | | ??????????????????????# # #### #???? | | ??????????????????????# # #????#???? | | ??????????????????????## """ ## #????????? | | ???????????????????????## """k #? #????????? | | ????????????????????????# #? #????????? | | ????????????????????????# ? #????????? | | ????????????????????????## ####????????? | | ?????????????????????????## ##???????????? | | ??????????????????????????#####????????????? | | ???????????????????????????????????????????? | | ???????????????????????????????????????????? | | ???????????????????????????????????????????? | | ???????????????????????????????????????????? | | ???????????????????????????????????????????? | | ???????????????????????????????????????????? | | ???????????????????????????????????????????? | | ???????????????????????????????????????????? | | ???????????????????????????????????????????? | +----------------------------------------------------+ Best States ------------- Heat Dissipation 25 Energy Generation 10 Energy Capacity 125 Matter Stores 300 Matter Capacity 300 Sight Range 16 Terrain Scan Density 10 Evasion (%) 50 Item Schematics ----------------- None Robot Schematics ------------------ None Fabricated ------------ Nothing Alien Tech Used ----------------- None Achievements -------------- None Challenges ------------ None Player 2 | -11 -10 -10 ---------- Run | Scr Mat Min Slots Evolved . | . . . Power . | . . . Propulsion . | . . . Utility . | . . . Weapon . | . . . Parts Attached 4 | . 2 2 Parts Lost 1 | . . 1 Damage Taken 189 | . . 189 Core 29 | . . 29 Player 2/Cogmind (%) 10 | . . 13 Absorbed by Shields . | . . . Damage Inflicted 120 | . 25 95 Player 2/Cogmind (%) 33 | . 40 31 Combat Hostiles Destroyed 1 | . . 1 Player 2/Cogmind (%) 50 | . . 50 Game ------ Seed SmallGodShielding Manual? 0 Play Time 00:03:27 Cumulative 318.3 hours Start 2020.10.14 @ 16:02:41 End 2020.10.14 @ 16:05:00 Sessions 1 Manual Loads 0 Difficulty Rogue Special Mode AFD2020/Player2 Game No. 178 Rogue 21 Adventurer 52 Explorer 105 Win Type - Total 19 Types 17/0/1/0/0/0/0/1/0 Lore% 62 Gallery% 85 Achievement% 64 Wizard Run 0 Options --------- ASCII 0 Keyboard 0 Movement Mouse Keybinds 0 Fullscreen 2 Font 18/TerminusBold Map View 76x50 Tactical HUD 1 Map Filters NONE Filters NONE Steam 1 RUN: 9d52b301-f057-4bed-aefb-3097aaf975c0